fUST/lending_fUST_20250613
["ID","MTS","AMOUNT","RATE_DAILY","PERIOD"]
[365604992,1749802246905,-964.0,0.00022666,2]
[365604994,1749802246914,-2160.0,0.00022666,2]
[365604997,1749802246925,-653.0,0.00022666,2]
[365604999,1749802246934,-2000.0,0.00022681,2]
[365605001,1749802246944,-1697.96253995,0.00022693,7]
[365605003,1749802246956,-500.0,0.00022694,2]
[365605005,1749802246965,-500.0,0.00022694,2]
[365605007,1749802246976,-3000.0,0.000227,2]
[365605009,1749802246986,-151.0,0.000227,5]
[365605011,1749802246996,-805.16,0.00022704,5]
[365605013,1749802247006,-153.0,0.00022705,2]
[365605015,1749802247015,-153.0,0.00022705,2]
[365605017,1749802247025,-153.0,0.00022705,2]
[365605019,1749802247034,-153.0,0.00022705,2]
[365605021,1749802247044,-153.0,0.00022705,2]
[365605023,1749802247053,-153.0,0.00022705,2]
[365605025,1749802247063,-153.0,0.00022705,2]
[365605027,1749802247073,-153.0,0.00022706,2]
[365605029,1749802247082,-153.0,0.00022706,2]
[365605031,1749802247092,-153.0,0.00022706,2]
[365605033,1749802247102,-3000.0,0.0002271,2]
[365605035,1749802247112,-153.0,0.0002271,2]
[365605037,1749802247121,-153.0,0.0002271,2]
[365605039,1749802247135,-153.0,0.0002271,2]
[365605041,1749802247144,-153.0,0.00022711,2]
[365605043,1749802247154,-407.078,0.00022716,2]
[365605045,1749802247163,-3000.0,0.0002272,2]
[365605047,1749802247173,-500.0,0.00022721,2]
[365605049,1749802247184,-500.0,0.00022721,2]
[365605051,1749802247194,-347.90623513,0.00022721,2]
[365605053,1749802247205,-500.0,0.00022721,2]
[365605055,1749802247215,-500.0,0.00022721,2]
[365605057,1749802247225,-500.0,0.00022721,2]
[365605059,1749802247235,-500.0,0.00022721,2]
[365605061,1749802247244,-500.0,0.00022721,2]
[365605062,1749802247264,-500.0,0.00022721,2]
[365605065,1749802247279,-500.0,0.00022721,2]
[365605066,1749802247288,-500.0,0.00022721,2]
[365605069,1749802247298,-507.4259494,0.00022722,2]
[365605071,1749802247308,-3000.0,0.0002273,2]
[365605072,1749802247317,-379.045709,0.00022739,7]
[365605074,1749802247327,-379.045709,0.00022739,7]
[365605077,1749802247337,-460.0,0.00022739,4]
[365605079,1749802247347,-804.61,0.00022739,2]
[365605080,1749802247356,-805.12,0.00022739,4]
[365605083,1749802247365,-460.0,0.00022739,4]
[365605085,1749802247375,-868.83,0.00022739,4]
[365605087,1749802247386,-1164.97,0.00022739,4]
[365605089,1749802247396,-472.9,0.00022739,4]
[365605091,1749802247406,-828.06,0.00022739,4]
[365605092,1749802247415,-460.0,0.00022739,4]
[365605093,1749802247425,-460.0,0.00022739,4]
[365605094,1749802247434,-491.52,0.00022739,4]
[365605096,1749802247444,-506.39,0.00022739,4]
[365605098,1749802247455,-524.68,0.00022739,4]
[365605100,1749802247464,-520.97,0.00022739,4]
[365605102,1749802247474,-1626.51,0.00022739,4]
[365605103,1749802247484,-927.44,0.00022739,4]
[365605105,1749802247493,-876.52,0.00022739,4]
[365605108,1749802247503,-901.78,0.00022739,4]
[365605109,1749802247512,-220.42370408,0.00022739,4]
[365605111,1749802247522,-1479.11,0.00022739,4]
[365605114,1749802247533,-1280.28,0.00022739,4]
[365605115,1749802247543,-3000.0,0.0002274,2]
[365605118,1749802247552,-500.0,0.00022747,2]
[365605119,1749802247563,-500.0,0.00022747,2]
[365605121,1749802247573,-500.0,0.00022747,2]
[365605123,1749802247584,-500.0,0.00022747,2]
[365605125,1749802247594,-165.59022411,0.00022747,2]
[365605128,1749802247604,-500.0,0.00022747,2]
[365605129,1749802247612,-600.0,0.00022747,2]
[365605132,1749802247622,-500.0,0.00022747,2]
[365605134,1749802247632,-500.0,0.00022747,2]
[365605136,1749802247641,-500.0,0.00022747,2]
[365605138,1749802247651,-500.0,0.00022747,2]
[365605140,1749802247660,-500.0,0.00022747,2]
[365605142,1749802247669,-500.0,0.00022747,2]
[365605143,1749802247678,-548.790575,0.00022747,2]
[365605144,1749802247688,-3000.0,0.0002275,2]
[365605145,1749802247698,-3000.0,0.0002276,2]
[365605146,1749802247709,-3000.0,0.0002277,2]
[365605147,1749802247719,-3000.0,0.0002278,2]
[365605148,1749802247728,-700.0,0.00022785,2]
[365605149,1749802247738,-3000.0,0.0002279,2]
[365605150,1749802247749,-3000.0,0.000228,2]
[365605151,1749802247759,-805.16,0.00022804,2]
[365605152,1749802247769,-3000.0,0.0002281,2]
[365605153,1749802247780,-500.0,0.00022815,2]
[365605154,1749802247790,-3000.0,0.0002282,2]
[365605155,1749802247799,-500.0,0.00022825,2]
[365605156,1749802247809,-3000.0,0.0002283,2]
[365605157,1749802247819,-1697.96253995,0.00022831,8]
[365605158,1749802247828,-3000.0,0.0002284,2]
[365605159,1749802247837,-3000.0,0.0002285,2]
[365605160,1749802247847,-3000.0,0.0002286,2]
[365605161,1749802247858,-500.0,0.00022869,2]
[365605162,1749802247868,-3000.0,0.0002287,2]
[365605163,1749802247879,-3000.0,0.0002288,2]
[365605164,1749802247889,-3000.0,0.0002289,2]
[365605165,1749802247899,-3000.0,0.000229,2]
[365605166,1749802247909,-805.16,0.00022904,4]
[365605167,1749802247920,-3000.0,0.0002291,2]
[365605168,1749802247930,-3000.0,0.0002292,2]
[365605169,1749802247941,-3000.0,0.0002293,2]
[365605170,1749802247953,-151.0,0.00022939,7]
[365605171,1749802247964,-3000.0,0.0002294,2]
[365605172,1749802247974,-3000.0,0.0002295,2]
[365605173,1749802247984,-3000.0,0.0002296,2]
[365605174,1749802247994,-196.0,0.00022966,2]
[365605175,1749802248004,-1697.96253995,0.00022969,8]
[365605176,1749802248019,-582.82663012,0.0002297,2]
[365605177,1749802248182,-2417.17336988,0.0002297,2]
[365605178,1749802248196,-434.3016927,0.00022971,2]
[365605179,1749802248210,-3000.0,0.0002298,2]
[365605180,1749802248221,-3000.0,0.0002299,2]
[365605181,1749802248231,-151.0,0.00023,7]
[365605182,1749802248242,-151.0,0.00023,7]
[365605183,1749802248252,-232.571623,0.00023,7]
[365605184,1749802248263,-232.571623,0.00023,7]
[365605185,1749802248273,-3000.0,0.00023,2]
[365605186,1749802248284,-151.0,0.00023,6]
[365605188,1749802248295,-379.045709,0.00023,7]
[365605190,1749802248306,-379.045709,0.00023,7]
[365605191,1749802248316,-9990.12902333,0.00023,2]
[365605192,1749802248327,-424.32678023,0.00023,3]
[365605193,1749802248336,-160.0,0.00023,3]
[365605194,1749802248346,-835.28007164,0.00023,3]
[365605195,1749802248357,-229.78555783,0.00023,3]
[365605196,1749802248368,-160.0,0.00023,3]
[365605197,1749802248379,-805.16,0.00023004,3]
[365605198,1749802248392,-3000.0,0.0002301,2]
[365605199,1749802248402,-460.0,0.00023013,4]
[365605200,1749802248412,-804.61,0.00023013,2]
[365605201,1749802248423,-805.12,0.00023013,4]
[365605202,1749802248433,-460.0,0.00023013,4]
[365605203,1749802248444,-868.83,0.00023013,4]
[365605204,1749802248455,-1164.97,0.00023013,4]
[365605205,1749802248466,-472.9,0.00023013,4]
[365605206,1749802248478,-828.06,0.00023013,4]
[365605207,1749802248489,-460.0,0.00023013,4]
[365605208,1749802248500,-460.0,0.00023013,4]
[365605209,1749802248511,-491.52,0.00023013,4]
[365605210,1749802248523,-506.39,0.00023013,4]
[365605211,1749802248534,-524.68,0.00023013,4]
[365605212,1749802248545,-520.97,0.00023013,4]
[365605213,1749802248555,-1626.51,0.00023013,4]
[365605214,1749802248565,-927.44,0.00023013,4]
[365605215,1749802248575,-876.52,0.00023013,4]
[365605216,1749802248586,-901.78,0.00023013,4]
[365605217,1749802248596,-1479.11,0.00023013,4]
[365605218,1749802248607,-1280.28,0.00023013,4]
[365605219,1749802248618,-3000.0,0.0002302,2]
[365605220,1749802248629,-172.750604,0.0002302,7]
[365605221,1749802248640,-3000.0,0.0002303,2]
[365605222,1749802248651,-3000.0,0.0002304,2]
[365605223,1749802248663,-3000.0,0.0002305,2]
[365605224,1749802248673,-3000.0,0.0002306,2]
[365605225,1749802248684,-3851.075181,0.0002307,2]
[365605226,1749802248695,-805.16,0.00023104,5]
[365605227,1749802248706,-1697.96253995,0.00023107,8]
[365605228,1749802248717,-207.69419446,0.00023142,2]
[365605229,1749802248727,-160.2242514,0.00023151,2]
[365605230,1749802248737,-982.82529033,0.00023179,2]
[365605231,1749802248747,-151.0,0.00023179,7]
[365605232,1749802248758,-151.0,0.00023179,7]
[365605233,1749802248768,-434.3016927,0.00023181,2]
[365605234,1749802248778,-805.16,0.00023204,4]
[365605235,1749802248789,-1151.20526447,0.00023229,2]
[365605236,1749802248799,-234.81,0.00023231,2]
[365605237,1749802248809,-1000.0,0.00023242,2]
[365605238,1749802248820,-1000.0,0.00023242,2]
[365605239,1749802248830,-6851.89,0.00023244,2]
[365605240,1749802248841,-1697.96253995,0.00023245,8]
[365605241,1749802248851,-151.0,0.00023245,7]
[365605242,1749802248863,-151.0,0.00023245,7]
[365605243,1749802248874,-151.0,0.00023245,7]
[365605244,1749802248884,-160.22425139,0.0002326,2]
[365605245,1749802248895,-215.0738,0.00023265,2]
[365605246,1749802248906,-1000.0,0.00023269,2]
[365605247,1749802248916,-1000.0,0.00023269,2]
[365605248,1749802248927,-1000.0,0.00023269,2]
[365605249,1749802248937,-1000.0,0.00023269,2]
[365605250,1749802248947,-1000.0,0.00023269,2]
[365605251,1749802248961,-1000.0,0.00023269,2]
[365605252,1749802248971,-1000.0,0.00023269,2]
[365605253,1749802248982,-1000.0,0.00023269,2]
[365605254,1749802248992,-1000.0,0.00023269,2]
[365605255,1749802249002,-1000.0,0.00023269,2]
[365605256,1749802249012,-460.0,0.00023287,4]
[365605257,1749802249022,-804.61,0.00023287,2]
[365605258,1749802249033,-805.12,0.00023287,4]
[365605259,1749802249044,-460.0,0.00023287,4]
[365605260,1749802249054,-868.83,0.00023287,4]
[365605261,1749802249065,-1164.97,0.00023287,4]
[365605262,1749802249076,-472.9,0.00023287,4]
[365605263,1749802249087,-828.06,0.00023287,4]
[365605264,1749802249098,-151.0,0.00023287,7]
[365605265,1749802249109,-151.0,0.00023287,7]
[365605266,1749802249119,-460.0,0.00023287,4]
[365605267,1749802249130,-460.0,0.00023287,4]
[365605268,1749802249145,-491.52,0.00023287,4]
[365605269,1749802249156,-506.39,0.00023287,4]
[365605270,1749802249167,-524.68,0.00023287,4]
[365605271,1749802249180,-520.97,0.00023287,4]
[365605276,1749802249296,-1626.51,0.00023287,4]
[365605278,1749802249307,-927.44,0.00023287,4]
[365605280,1749802249318,-876.52,0.00023287,4]
[365605282,1749802249329,-901.78,0.00023287,4]
[365605284,1749802249339,-1479.11,0.00023287,4]
[365605286,1749802249350,-1280.28,0.00023287,4]
[365605288,1749802249361,-153.8295048,0.00023288,2]
[365605290,1749802249371,-151.0,0.0002329,7]
[365605292,1749802249382,-379.045709,0.0002329,7]
[365605294,1749802249395,-379.045709,0.0002329,7]
[365605296,1749802249406,-1000.0,0.00023295,2]
[365605298,1749802249417,-1000.0,0.00023295,2]
[365605300,1749802249427,-1000.0,0.00023295,2]
[365605302,1749802249438,-1000.0,0.00023295,2]
[365605304,1749802249449,-1200.0,0.00023295,2]
[365605306,1749802249464,-1000.0,0.00023295,2]
[365605308,1749802249475,-1007.55460346,0.00023295,2]
[365605310,1749802249485,-1000.0,0.00023295,2]
[365605311,1749802249497,-1128.81958972,0.00023295,2]
[365605312,1749802249507,-1000.0,0.00023295,2]
[365605313,1749802249516,-678.77621374,0.00023295,2]
[365605314,1749802249526,-151.0,0.000233,5]
[365605315,1749802249538,-213.24139183,0.000233,7]
[365605316,1749802249550,-12531.02669373,0.000233,7]
[365605317,1749802249561,-805.16,0.00023304,4]
[365605318,1749802249572,-306.0,0.00023315,2]
[365605319,1749802249583,-1149.221048,0.00023324,3]
[365605320,1749802249594,-151.0,0.00023325,7]
[365605321,1749802249605,-232.571623,0.00023325,7]
[365605322,1749802249616,-232.571623,0.00023325,7]
[365605323,1749802249626,-168.0,0.00023345,2]
[365605324,1749802249637,-1000.0,0.00023363,2]
[365605325,1749802249648,-1000.0,0.00023373,2]
[365605326,1749802249659,-1697.96253995,0.00023383,9]
[365605327,1749802249670,-151.0,0.00023383,7]
[365605328,1749802249680,-299.15434,0.00023383,7]
[365605329,1749802249691,-189.88341757,0.000234,2]
[365605330,1749802249702,-805.16,0.00023404,5]
[365605331,1749802249717,-434.3016927,0.00023414,2]
[365605332,1749802249728,-505.00645495,0.00023417,2]
[365605333,1749802249740,-601.57766368,0.00023452,2]
[365605334,1749802249751,-151.0,0.000235,10]
[365605335,1749802249762,-805.16,0.00023504,5]
[365605337,1749802249774,-1697.96253995,0.00023521,9]
[365605339,1749802249785,-151.0,0.00023521,7]
[365605341,1749802249797,-151.0,0.00023537,7]
[365605343,1749802249808,-1548.72144,0.00023537,2]
[365605344,1749802249818,-1548.72144,0.00023537,2]
[365605345,1749802249830,-811.118375,0.00023537,7]
[365605346,1749802249840,-811.118375,0.00023537,7]
[365605347,1749802249850,-151.0,0.00023561,7]
[365605348,1749802249860,-200.0,0.00023561,4]
[365605349,1749802249870,-265.48253308,0.00023561,4]
[365605350,1749802249881,-379.045709,0.00023561,7]
[365605351,1749802249892,-379.045709,0.00023561,7]
[365605352,1749802249905,-460.0,0.00023561,4]
[365605353,1749802249915,-804.61,0.00023561,2]
[365605354,1749802249925,-805.12,0.00023561,4]
[365605355,1749802249936,-460.0,0.00023561,4]
[365605356,1749802249947,-868.83,0.00023561,4]
[365605357,1749802249959,-1164.97,0.00023561,4]
[365605358,1749802249969,-472.9,0.00023561,4]
[365605359,1749802249979,-828.06,0.00023561,4]
[365605360,1749802249990,-460.0,0.00023561,4]
[365605361,1749802250000,-460.0,0.00023561,4]
[365605362,1749802250011,-491.52,0.00023561,4]
[365605363,1749802250021,-506.39,0.00023561,4]
[365605364,1749802250031,-524.68,0.00023561,4]
[365605365,1749802250040,-520.97,0.00023561,4]
[365605366,1749802250050,-1626.51,0.00023561,4]
[365605367,1749802250060,-927.44,0.00023561,4]
[365605368,1749802250070,-876.52,0.00023561,4]
[365605369,1749802250080,-901.78,0.00023561,4]
[365605370,1749802250091,-1479.11,0.00023561,4]
[365605371,1749802250103,-1280.28,0.00023561,4]
[365605372,1749802250114,-43234.55653057,0.00023562,2]
[365605373,1749802250267,-164.9101268,0.00020338,2]
[365605374,1749802250278,-500.0,0.00020338,2]
[365605375,1749802250288,-135.0898732,0.00020338,2]
[365605376,1749802250301,-364.9101268,0.00020338,2]
[365605377,1749802250313,-585.57526181,0.00020338,2]
[365605378,1749802250323,-400.15930839,0.00021369,4]
[365605379,1749802250332,-360.0,0.00022739,4]
[365605380,1749802250342,-2411.17844904,0.00023562,2]
[365605381,1749802250478,-924.58341449,0.00023562,2]
[365605382,1749802250491,-1753.04995578,0.00023562,2]
[365605383,1749802250682,-24900.0,0.00019216,2]
[365605384,1749802250692,-460.0,0.00021095,4]
[365605385,1749802250703,-824.05075289,0.00023562,2]
[365605386,1749802250715,-196.0,0.00023576,2]
[365605387,1749802250725,-806.78523624,0.00023585,2]
[365605388,1749802250734,-151.0,0.000236,7]
[365605389,1749802250745,-232.571623,0.000236,7]
[365605390,1749802250755,-232.571623,0.000236,7]
[365605391,1749802250765,-805.16,0.00023604,3]
[365605392,1749802250776,-1697.96253995,0.00023659,9]
[365605393,1749802250786,-151.0,0.000237,7]
[365605394,1749802250796,-198.71264452,0.000237,4]
[365605395,1749802250805,-198.71,0.000237,4]
[365605396,1749802250815,-154.55427907,0.000237,4]
[365605397,1749802250825,-154.55427907,0.000237,4]
[365605398,1749802250835,-154.55427907,0.000237,4]
[365605399,1749802250844,-154.55427907,0.000237,4]
[365605400,1749802250854,-154.55427907,0.000237,4]
[365605401,1749802250863,-154.55,0.000237,4]
[365605402,1749802250873,-158.64659567,0.000237,4]
[365605403,1749802250882,-158.64659567,0.000237,4]
[365605404,1749802250892,-158.64659567,0.000237,4]
[365605405,1749802250902,-80.84274017,0.000237,4]
[365605406,1749802250922,-77.8038555,0.000237,4]
[365605407,1749802250932,-158.64659567,0.000237,4]
[365605408,1749802250942,-158.64659567,0.000237,4]
[365605409,1749802250952,-158.64659567,0.000237,4]
[365605410,1749802250961,-158.64659567,0.000237,4]
[365605411,1749802250971,-158.64,0.000237,4]
[365605412,1749802250981,-166.57892546,0.000237,4]
[365605413,1749802250990,-166.57892546,0.000237,4]
[365605414,1749802251000,-166.57892546,0.000237,4]
[365605415,1749802251010,-166.57892546,0.000237,4]
[365605416,1749802251020,-166.57892546,0.000237,4]
[365605417,1749802251029,-166.57892546,0.000237,4]
[365605418,1749802251038,-166.57892546,0.000237,4]
[365605419,1749802251047,-166.57892546,0.000237,4]
[365605420,1749802251057,-166.57892546,0.000237,4]
[365605421,1749802251067,-166.57892546,0.000237,4]
[365605422,1749802251077,-166.57892546,0.000237,4]
[365605423,1749802251086,-166.57892546,0.000237,4]
[365605424,1749802251096,-166.57892546,0.000237,4]
[365605425,1749802251105,-166.57892546,0.000237,4]
[365605426,1749802251115,-166.57892546,0.000237,4]
[365605427,1749802251125,-166.57892546,0.000237,4]
[365605428,1749802251139,-166.57892546,0.000237,4]
[365605429,1749802251148,-166.57892546,0.000237,4]
[365605430,1749802251158,-166.57892546,0.000237,4]
[365605431,1749802251167,-166.57,0.000237,4]
[365605432,1749802251178,-245.28526043,0.000237,4]
[365605433,1749802251188,-245.28526043,0.000237,4]
[365605434,1749802251198,-245.28526043,0.000237,4]
[365605435,1749802251207,-245.28526043,0.000237,4]
[365605436,1749802251218,-245.28526043,0.000237,4]
[365605437,1749802251227,-245.28526043,0.000237,4]
[365605438,1749802251236,-245.28526043,0.000237,4]
[365605439,1749802251246,-245.28526043,0.000237,4]
[365605440,1749802251255,-245.28526043,0.000237,4]
[365605441,1749802251265,-245.28526043,0.000237,4]
[365605442,1749802251275,-245.28526043,0.000237,4]
[365605443,1749802251284,-245.28526043,0.000237,4]
[365605444,1749802251293,-245.28526043,0.000237,4]
[365605445,1749802251303,-245.28526043,0.000237,4]
[365605446,1749802251312,-245.28526043,0.000237,4]
[365605447,1749802251323,-245.28526043,0.000237,4]
[365605448,1749802251333,-245.28526043,0.000237,4]
[365605449,1749802251343,-245.28526043,0.000237,4]
[365605450,1749802251353,-245.28526043,0.000237,4]
[365605451,1749802251362,-245.28,0.000237,4]
[365605452,1749802251372,-572.33227433,0.000237,4]
[365605453,1749802251382,-572.33227433,0.000237,4]
[365605454,1749802251391,-572.33227433,0.000237,4]
[365605455,1749802251401,-572.33227433,0.000237,4]
[365605456,1749802251411,-572.33227433,0.000237,4]
[365605457,1749802251421,-572.33227433,0.000237,4]
[365605458,1749802251431,-572.33227433,0.000237,4]
[365605459,1749802251441,-572.33227433,0.000237,4]
[365605460,1749802251451,-572.33227433,0.000237,4]
[365605461,1749802251462,-572.33227433,0.000237,4]
[365605462,1749802251471,-572.33227433,0.000237,4]
[365605463,1749802251481,-572.33227433,0.000237,4]
[365605464,1749802251491,-572.33227433,0.000237,4]
[365605465,1749802251501,-572.33227433,0.000237,4]
[365605466,1749802251603,-572.33227433,0.000237,4]
[365605467,1749802251614,-572.33227433,0.000237,4]
[365605468,1749802251626,-572.33227433,0.000237,4]
[365605469,1749802251636,-572.33227433,0.000237,4]
[365605470,1749802251647,-572.33227433,0.000237,4]
[365605471,1749802251657,-572.33,0.000237,4]
[365605472,1749802251667,-805.16,0.00023704,6]
[365605473,1749802251678,-587.0,0.00023711,2]
[365605474,1749802251688,-220.0,0.00023712,2]
[365605475,1749802251698,-587.0,0.00023712,2]
[365605476,1749802251709,-151.0,0.0002375,7]
[365605477,1749802251719,-160.0,0.00023753,2]
[365605478,1749802251729,-160.0,0.00023753,2]
[365605479,1749802251739,-835.28007164,0.00023753,2]
[365605480,1749802251748,-800.0,0.00023755,2]
[365605481,1749802251758,-160.0,0.00023755,2]
[365605482,1749802251769,-379.045709,0.0002377,7]
[365605483,1749802251780,-379.045709,0.0002377,7]
[365605484,1749802251790,-500.0,0.00023773,2]
[365605485,1749802251800,-1500.0,0.0002379,2]
[365605486,1749802251811,-1697.96253995,0.00023797,9]
[365605487,1749802251821,-18581.57723966,0.000238,2]
[365605488,1749802251831,-9658.45238722,0.000238,2]
[365605489,1749802251840,-144081.96778639,0.000238,3]
[365605490,1749802251850,-794.93,0.000238,10]
[365605491,1749802251859,-201.092802,0.000238,7]
[365605492,1749802251869,-201.092802,0.000238,7]
[365605493,1749802251879,-201.092802,0.000238,7]
[365605494,1749802251888,-201.092801,0.000238,7]
[365605495,1749802251898,-151.0,0.000238,7]
[365605496,1749802251908,-151.0,0.000238,7]
[365605497,1749802251917,-257.168339,0.000238,7]
[365605498,1749802251928,-153.476377,0.000238,7]
[365605499,1749802251938,-153.476377,0.000238,7]
[365605500,1749802251948,-615515.10293907,0.000238,3]
[365605501,1749802251962,-4977.38104625,0.000238,3]
[365605502,1749802252407,-3109.88145166,0.000238,3]
[365605503,1749802252651,-121135.39557913,0.000238,3]
[365605528,1749802347859,-270.72238522,0.00019728,2]
[365605529,1749802347886,-557.27761478,0.0002,3]
[365605531,1749802351176,200.0,0.00023545,120]
[365605533,1749802471977,200.0,0.00023537,120]
[365605546,1749802531908,200.0,0.00023986,120]
[365605552,1749802651962,200.0,0.00023262,120]
[365605555,1749802692482,500.0,0.00024658,120]
[365605557,1749802711710,200.0,0.00023956,120]
[365605562,1749802831448,200.0,0.00024109,120]
[365605564,1749802853937,200.0,0.00024657,120]
[365605565,1749802874722,-770.0320289,0.00019638,2]
[365605566,1749802874745,-422.754404,0.00019727,2]
[365605567,1749802874766,-162.43343114,0.00019774,2]
[365605568,1749802874788,-73.78013596,0.00019797,2]
[365605572,1749802938512,265.0,0.00024931,60]
[365605575,1749803012543,200.0,0.00024241,120]
[365605576,1749803112392,200.0,0.00024657,120]
[365606833,1749803191358,200.0,0.00023492,120]
[365607204,1749803202349,294.388231,0.00013699,2]
[365607823,1749803251446,200.0,0.00024244,120]
[365607824,1749803281303,200.0,0.00024657,120]
[365607829,1749803324666,1413.3658607,0.00022,120]
[365607831,1749803329436,-1621.0,0.00018,2]
[365607840,1749803382650,406.81,0.00024657,120]
[365607889,1749803432479,-394.44638851,0.00018,2]
[365607891,1749803432490,-254.69690413,0.00019092,2]
[365607893,1749803432500,-300.0,0.00019585,2]
[365607895,1749803432509,-245.0,0.00019585,2]
[365607897,1749803432521,-300.0,0.00019585,2]
[365607899,1749803432531,-1105.85670736,0.00019585,2]
[365607901,1749803432543,-94.14329264,0.00019585,2]
[365607903,1749803432554,-2505.71541099,0.00019586,2]
[365607905,1749803432566,-1137.5,0.00019586,2]
[365607908,1749803432577,-5758.86515737,0.00019586,2]
[365607911,1749803432589,-481.84569023,0.00019586,2]
[365607915,1749803432601,-605.45,0.00019586,2]
[365607918,1749803432612,-4869.19082922,0.00019586,2]
[365607925,1749803432699,-5267.5,0.00019586,2]
[365607926,1749803432712,-4273.93291219,0.00019586,2]
[365607928,1749803432722,-194.09683,0.00019777,2]
[365607931,1749803432732,-84.16582434,0.00019797,2]
[365607933,1749803432742,-287.51410255,0.0002,3]
[365607935,1749803432751,-2216.2522718,0.0002,2]
[365608001,1749803438734,-238.34614048,0.000199,2]
[365608003,1749803438744,-18463.39641548,0.0002,2]
[365608005,1749803438753,-596.0166503,0.00020063,2]
[365608007,1749803438762,-543.1187712,0.00020163,2]
[365608009,1749803438771,-294.388231,0.00020187,2]
[365608011,1749803438780,-166.0,0.00020274,2]
[365608013,1749803438789,-1537.5,0.00020282,2]
[365608015,1749803438798,-771.7109467,0.000204,3]
[365608017,1749803438807,-771.71094651,0.000204,3]
[365608019,1749803438815,-771.71094651,0.000204,3]
[365608020,1749803438825,-771.71094651,0.00020417,3]
[365608022,1749803438834,-1916.70054431,0.0002057,2]
[365608024,1749803438843,-771.71094651,0.0002059,3]
[365608026,1749803438853,-600.0,0.00020593,2]
[365608028,1749803438862,-596.01665029,0.00020744,2]
[365608044,1749803439026,-771.71094651,0.00020762,3]
[365608047,1749803439039,-771.71094651,0.00020934,4]
[365608049,1749803439050,-300.0,0.00021092,2]
[365608051,1749803439060,-176.17502909,0.00021094,2]
[365608052,1749803439070,-480.85595007,0.00021094,2]
[365608054,1749803439080,-206.49874675,0.00021094,2]
[365608056,1749803439089,-173.95732681,0.00021094,2]
[365608058,1749803439099,-500.0,0.00021094,2]
[365608060,1749803439109,-500.0,0.00021094,2]
[365608062,1749803439119,-280.25584108,0.00021094,2]
[365608064,1749803439131,-500.0,0.00021094,2]
[365608066,1749803439140,-491.8622788,0.00021094,2]
[365608068,1749803439150,-500.0,0.00021094,2]
[365608070,1749803439161,-500.0,0.00021094,2]
[365608072,1749803439171,-500.0,0.00021094,2]
[365608074,1749803439182,-500.0,0.00021094,2]
[365608076,1749803439192,-500.0,0.00021094,2]
[365608078,1749803439202,-500.0,0.00021094,2]
[365608080,1749803439212,-500.0,0.00021094,2]
[365608082,1749803439221,-500.0,0.00021094,2]
[365608084,1749803439230,-500.0,0.00021094,2]
[365608085,1749803439240,-500.0,0.00021094,2]
[365608087,1749803439249,-500.0,0.00021094,2]
[365608089,1749803439258,-500.0,0.00021094,2]
[365608091,1749803439268,-500.0,0.00021094,2]
[365608093,1749803439277,-500.0,0.00021094,2]
[365608095,1749803439286,-500.0,0.00021094,2]
[365608097,1749803439295,-500.0,0.00021094,2]
[365608099,1749803439305,-500.0,0.00021094,2]
[365608101,1749803439314,-500.0,0.00021094,2]
[365608103,1749803439324,-500.0,0.00021094,2]